Cogmind - Beta 9.2 @@@ ROGUE MODE // 2019.11.14 @ 19:35:21 Player: Lumi Result: Destroyed by D-53 Grenadier with Mini Grenade Launcher Performance ------------- Evolutions (0) 0 Regions Visited (2) 400 Robots Destroyed (25) 125 Value Destroyed (469) 469 Prototype IDs (0) 0 Alien Tech Used (0) 0 Bonus (0) 0 TOTAL SCORE: 994 Bonus ------- None Cogmind --------- Core Integrity 0/250 Matter 300/300 Energy 100/100 System Corruption 0% Temperature Cool (14) Movement Treading (160) Location -10/Mines Parts ------- > --- POWER (1) -------- (None) > --- PROPULSION (2) --- Light Treads Light Treads > --- UTILITY (2) ------ Small Storage Unit Advanced Targeting Computer > --- WEAPON (2) ------- (None) > --- INVENTORY (6) ---- Nuclear Core Aluminum Leg Carbon-fiber Leg Flak Cannon Grenade Launcher Peak State ------------ > --- POWER ------------ Ion Engine > --- PROPULSION ------- Light Treads Light Treads > --- UTILITY ---------- Small Storage Unit Advanced Targeting Computer > --- WEAPON ----------- Pulse Rifle Light Assault Rifle > --- INVENTORY -------- Nuclear Core Carbon-fiber Leg Flak Cannon Grenade Launcher [Rating: 12] Favorites ----------- Power Ion Engine Engine Ion Engine Propulsion Aluminum Leg Treads Light Treads Leg Aluminum Leg Utility Small Storage Unit Storage Small Storage Unit Processor Advanced Targeting Computer Protection Propulsion Shielding Weapon Light Assault Rifle Energy Gun Medium Laser Ballistic Gun Light Assault Rifle Launcher Grenade Launcher Build | -11 -10 -10 ------- Run | Scr Mat Min Slots Evolved . | . . . Power . | . . . Propulsion . | . . . Utility . | . . . Weapon . | . . . Parts Attached 19 | 7 4 8 Power 2 | 1 1 . Engine 2 | 1 1 . Core . | . . . Reactor . | . . . Propulsion 5 | 2 . 3 Treads 2 | . . 2 Leg 3 | 2 . 1 Wheel . | . . . Hover . | . . . Flight . | . . . Utility 4 | 1 1 2 Device . | . . . Storage 2 | 1 . 1 Processor 1 | . . 1 Hackware . | . . . Protection 1 | . 1 . Artifact . | . . . Weapon 8 | 3 2 3 Energy Gun 3 | 2 . 1 Energy Cannon . | . . . Ballistic Gun 4 | 1 2 1 Ballistic Cannon . | . . . Launcher 1 | . . 1 Special Weapon . | . . . Impact Weapon . | . . . Slashing Weapon . | . . . Piercing Weapon . | . . . Special Melee Weapon . | . . . Unidentified Prototypes . | . . . Parts Lost 10 | . 3 7 Power 2 | . 1 1 Propulsion 2 | . . 2 Utility . | . . . Weapon 6 | . 2 4 Highest Loss Streak 3 | . 1 3 Average Slot Usage (%) 95 | . 96 95 Engine 13 | . 13 14 Treads 2 | . . 7 Leg 24 | . 28 19 Storage 13 | . 14 13 Processor 2 | . . 5 Protection 10 | . 12 7 Energy Gun 8 | . 9 7 Ballistic Gun 15 | . 16 12 Launcher 2 | . . 6 Naked Turns . | . . . Heaviest Build 14 | 13 14 14 Greatest Support 40 | 20 20 40 Greatest Overweight (x) 2 | 2 . 1 Average Overweight (x) . | . . . Largest Inventory Capacity 6 | 6 6 6 Average Capacity 5 | 5 6 5 Most Carried 6 | 4 6 6 Average Carried 4 | 2 5 4 Final Capacity 6 | 6 6 6 Final Carried 5 | 4 4 5 Class Distribution -------------------- 100% | Mutant Dominant Class ---------------- Mutant | -10/Materials Mutant | -10/Mines Resources | -11 -10 -10 ----------- Run | Scr Mat Min Matter Collected 607 | 251 150 206 Remotely . | . . . Salvage Created 535 | . 242 293 Parts 30 | . 12 18 Haulers Intercepted . | . . . Recyclers Shooed 1 | . 1 . Parts Field Recycled . | . . . Retrieved Matter . | . . . Parts Self-Destructed . | . . . Prevented . | . . . Kills | -11 -10 -10 ------- Run | Scr Mat Min Combat Hostiles Destroyed 23 | . 11 12 Guns 16 | . 11 5 AOE 7 | . . 7 Classes Destroyed 4 | . 3 1 Worker 1 | . . 1 Tunneler 1 | . 1 . Swarmer 15 | . 9 6 Grunt 8 | . 2 6 Best Kill Streak 5 | . 3 5 Combat Bots Only 5 | . 3 5 Max Kills in Single Turn 3 | . 1 3 Gunslinging . | . . . Exploded 3 | . . 3 Melee . | . . . Uniques/NPCs Destroyed . | . . . Combat | -11 -10 -10 -------- Run | Scr Mat Min Damage Taken 1149 | . 537 612 Core 268 | . 109 159 Absorbed by Shields . | . . . Core Remaining (%) 100 | 100 . . Volleys Fired 85 | . 53 32 Largest 2 | . 2 2 Hottest 83 | . 70 83 Shots Fired 142 | . 87 55 Gun 130 | . 87 43 Cannon . | . . . Launcher 12 | . . 12 Special . | . . . Kinetic 89 | . 60 29 Thermal 41 | . 27 14 Explosive 12 | . . 12 Electromagnetic . | . . . Robot Hit Streak 18 | . 9 18 Robot Miss Streak 7 | . 7 3 Penetration Max . | . . . Secondary Targets . | . . . Shots Hit Robots 80 | . 44 36 Core Hits 42 | . 16 26 Critical Hits . | . . . Critical Kills . | . . . Critical Parts Destroyed . | . . . Melee Attacks . | . . . Impact . | . . . Slashing . | . . . Piercing . | . . . Sneak Attacks . | . . . Combat Hostiles . | . . . Follow-up Attacks . | . . . Damage Inflicted 1224 | . 412 812 Guns 767 | . 412 355 Cannons . | . . . Explosions 453 | . . 453 Melee . | . . . Ramming 4 | . . 4 Kinetic 371 | . 224 147 Thermal 396 | . 188 208 Explosive 453 | . . 453 Electromagnetic . | . . . Impact . | . . . Slashing . | . . . Piercing . | . . . Highest Corruption . | . . . Average Corruption . | . . . Corruption Purged . | . . . Overload Shots . | . . . Overflow Damage 40 | . . 40 Projectiles . | . . . Explosions 40 | . . 40 Melee . | . . . Knockbacks . | . . . Impact . | . . . Kinetic . | . . . Secondary . | . . . Self-Inflicted Damage . | . . . Shots . | . . . Rammed 1 | . . 1 Targets Rammed 2 | . 1 1 Kicked 1 | . 1 . Crushed . | . . . Highest Temperature 289 | . 289 226 Average Temperature 87 | . 96 77 Received Heat Transfer 318 | . 129 189 Effects 4 | . 4 . Energy Bleed 1 | . 1 . Interference 3 | . 3 . Siege Activations . | . . . Robots Corrupted . | . . . Combat Hostiles . | . . . Parts Fried . | . . . Impact Corruptions . | . . . Robots Melted . | . . . Combat Hostiles . | . . . Parts Melted 2 | . 2 . Heat Transferred 999 | . 555 444 Parts Sabotaged . | . . . Parts Stolen . | . . . Parts Stripped . | . . . Power Chain Reactions . | . . . Missiles Intercepted . | . . . Alert | -11 -10 -10 ------- Run | Scr Mat Min Peak Influence 311 | . 145 311 Average Influence 124 | . 80 216 Maximum Alert Level 1 | . . 1 Low Security (%) 71 | 100 100 21 Level 1 28 | . . 78 Level 2 . | . . . Level 3 . | . . . Level 4 . | . . . Level 5 . | . . . High Security . | . . . Max Security . | . . . Squads Dispatched 1 | . . 1 Investigation 1 | . . 1 Extermination . | . . . Reinforcement . | . . . Assault . | . . . Garrison . | . . . Intercept . | . . . Construction Impeded . | . . . Haulers Reinforced . | . . . Stealth | -11 -10 -10 --------- Run | Scr Mat Min Distress Signals 1 | . 1 . Communications Jammed . | . . . Distress Signals . | . . . Times Spotted 29 | . 16 13 Peak Tracking Total 4 | . 4 4 Tactical Retreats 2 | . 1 1 Traps | -11 -10 -10 ------- Run | Scr Mat Min Traps Triggered . | . . . Indirectly . | . . . Trap Hack Attempts . | . . . Triggered . | . . . Disarmed . | . . . Reprogrammed . | . . . Reused . | . . . Traps Extracted . | . . . Installed . | . . . Triggered . | . . . Machines | -11 -10 -10 ---------- Run | Scr Mat Min Machines Disabled . | . . . Max in Single Turn . | . . . Machines Sabotaged . | . . . Garrisons Compromised . | . . . Overloaded Fab Kills . | . . . Fab Network Shutdowns . | . . . Hacking | -11 -10 -10 --------- Run | Scr Mat Min Machines Accessed 1 | . . 1 Terminals . | . . . Fabricators . | . . . Repair Stations . | . . . Recycling Units . | . . . Scanalyzers . | . . . Garrison Access . | . . . Total Hacks 1 | . . 1 Successful 1 | . . 1 Failed . | . . . Catastrophic . | . . . Database Lockouts . | . . . Manual . | . . . Terminals . | . . . Fabricators . | . . . Repair Stations . | . . . Recycling Units . | . . . Scanalyzers . | . . . Garrison Access . | . . . Terminal Hacks 1 | . . 1 Open Door 1 | . . 1 Fabricator Hacks . | . . . Repair Station Hacks . | . . . Recycling Unit Hacks . | . . . Scanalyzer . | . . . Garrison Access Hacks . | . . . Unauthorized Hacks . | . . . Terminals . | . . . Fabricators . | . . . Repair Stations . | . . . Recycling Units . | . . . Scanalyzers . | . . . Garrison Access . | . . . Data Cores Recovered . | . . . Used . | . . . Hacking Detections . | . . . Full Trace Events . | . . . Feedback Events . | . . . Feedback Blocked . | . . . Robot Schematics Acquired . | . . . Robots Built . | . . . Matter . | . . . Time . | . . . Total Robot Build Rating . | . . . Part Schematics Acquired . | . . . Parts Built . | . . . Matter . | . . . Time . | . . . Total Part Build Rating . | . . . Parts Repaired . | . . . Time . | . . . Parts Recycled . | . . . Recycled Matter . | . . . Retrieved Matter . | . . . Retrieved Components . | . . . Parts Scanalyzed . | . . . Part Schematics Acquired . | . . . Parts Damaged . | . . . Bothacking | -11 -10 -10 ------------ Run | Scr Mat Min Used RIF Installer . | . . . Robots Hacked . | . . . Non-combat . | . . . Combat . | . . . Robot Hacks Applied . | . . . Relay Couplers Released . | . . . Robots Rewired . | . . . Allies Hacked . | . . . Hacks Repelled . | . . . Allies | -11 -10 -10 -------- Run | Scr Mat Min Total Allies . | . . . Largest Group . | . . . Highest-Rated Group . | . . . Highest-Rated Ally . | . . . Total Orders . | . . . Ally Attacks . | . . . Total Damage . | . . . Kills . | . . . Allies Corrupted . | . . . Allies Melted . | . . . Intel | -11 -10 -10 ------- Run | Scr Mat Min Robot Analysis Total . | . . . Derelict Logs Recovered . | . . . Drone Launches . | . . . Drone Recoveries . | . . . Exploration | -11 -10 -10 ------------- Run | Scr Mat Min Turns Passed 1017 | 68 584 365 Spaces Moved 549 | 45 309 195 Core 16 | 16 . . Treads 49 | . . 49 Legs 484 | 29 309 146 Wheels . | . . . Hover . | . . . Flight . | . . . Fastest Speed 50 | 50 120 120 Average Speed 124 | 119 120 131 Slowest Speed 160 | 150 120 160 Overloaded Moves . | . . . Propulsion Burnouts . | . . . Robots Hopped . | . . . Cave-ins Triggered . | . . . Exploration Rate (%) 32 | 3 52 42 Regions Visited 2 Branch Regions 1 Pre-discovered Areas . | . . . Known Exits Taken . | . . . Unknown Exits Taken 2 | 1 1 . Scrap Searched . | . . . Spaces Dug 7 | . . 7 Terrain Destroyed 80 | . . 80 Melee . | . . . Projectile . | . . . AOE 80 | . . 80 Actions | -11 -10 -10 --------- Run | Scr Mat Min Total 756 | 56 443 257 Wait 74 | . 72 2 Move 547 | 44 308 195 Hop . | . . . Pick Up 18 | 4 4 10 Fast Attach 11 | 6 1 4 Attach 8 | 1 3 4 Detach 3 | 1 . 2 Swap . | . . . Drop 8 | . 1 7 Fire 85 | . 53 32 Melee . | . . . Ram . | . . . Kick 1 | . 1 . Crush 1 | . . 1 Escape Stasis . | . . . Rewire . | . . . Trap . | . . . Miscellaneous . | . . . Route ------- -11/Scrapyard -10/Materials -10/Mines (discovered 1 exit: [*Mat]) History --------- Turn | Location | Event 32 | -11/Scrapyard | Discovered new exit (range 16) 69 | -11/Scrapyard | Entered Materials 301 | -10/Materials | Build established: Mutant 552 | -10/Materials | Discovered new exit (range 12) 653 | -10/Materials | Entered Mines 662 | -10/Mines | Core integrity fell below 50% 702 | -10/Mines | Lost 3 parts (1n2w) 824 | -10/Mines | Met a Derelict shopkeep closing up shop 994 | -10/Mines | Discovered new exit (range 9) 1006 | -10/Mines | Assembled infested the area 1011 | -10/Mines | Assisted by a Guerilla fighting off Assembled 1016 | -10/Mines | Core integrity fell below 20% 1018 | -10/Mines | Destroyed by D-53 Grenadier with Mini Grenade Launcher Last Messages --------------- 00988_ G-47 Trooper destroyed. 00989_ Acquired 10 matter. 00992_ K-01 Serf collects debris. 00994_ EXIT=FOUND 00995_ K-01 Serf collects debris. 00996_ Dropped Aluminum Leg. 00996_ Acquired Aluminum Leg. 01006_ ALERT: Infestation in the mines, dispatching Demolisher response squad. 01011_ A derelict emerges from the shadows: "You need to get out of here! I've been tracking a group of Assembled to figure out where they're coming from, and they're closing on this area, come on!" 01015_ C-30 ARC bursts open, deploying its payload. 01015_ D-53 Grenadier unfolds itself. 01016_ Ion Engine destroyed. 01016_ Lgt. Assault Rifle destroyed. 01017_ BL-I2X(h): "I'll hold them off! Go on ahead or try to find another way!" 01017_ HV Slug penetrates Wall. 01018_ Pulse Rifle destroyed. Map ----- +----------------------------------------------------+ | ?????????????????????????????????????????????? | | ?????????????????????????????????????????????? | | ?????????????????????????????????????????????? | | ?????????????????????????????????????????????? | | ?????????????????????????????????????????????? | | ?????????????????????????????????????????????? | | ?????????????????????????????????????????????? | | ?????????????????????????????????????????????? | | ?????????????????????????????????????????????? | | ?????????????????????????????????????????????? | | ??????????????????????????????#??????????????? | | ????????????????????????????? #??????????????? | | ????????????????????????????? #??????????????? | | ????????????????????????????? #??????????????? | | ???????????????????###?????##k#??????????????? | | ??????????????????## ##### ###????????????? | | ??????????????????? ##???????????? | | ???????????????????? ##??????????? | | ????????????????????? ##?????????? | | ######???????????????# #?????????? | | = * #??????????????## #?????????? | | #### #?????????????## #??????????? | | ???# #????????????## #????????????? | | ???# #######??????# #?????????????? | | ???# #??????# h #??????????????? | | ???####### ######?#; d @ ##??????????????? | | ?????????# #?###d% ##???????????????? | | ?????????###### ##### #????????????????? | | ??????????????# %%[ # ???????????????? | | ??????????????####### =### ??????????????? | | ????????????????????# ?????????????? | | ????????????????????###### < #????????????? | | ?????????????????????????? #????????????? | | ??????????????????????????#######????????????? | | ?????????????????????????????????????????????? | | ?????????????????????????????????????????????? | | ?????????????????????????????????????????????? | | ?????????????????????????????????????????????? | | | | | | | | | | | | | | | | | | | | | | | | | +----------------------------------------------------+ Best States ------------- Heat Dissipation 25 Energy Generation 10 Energy Capacity 250 Matter Stores 300 Matter Capacity 300 Sight Range 16 Terrain Scan Density 10 Propulsion Shielding 33 Evasion (%) 40 Targeting Accuracy 8 Recoil Reduction 2 Item Schematics ----------------- None Robot Schematics ------------------ None Fabricated ------------ Nothing Alien Tech Used ----------------- None Achievements -------------- Storm Trooper Challenges ------------ None Game ------ Seed CoilSkeletonFlakker Manual? 0 Play Time 00:14:28 Cumulative 4.8 hours Start 2019.11.14 @ 19:21:10 End 2019.11.14 @ 19:35:21 Sessions 1 Manual Loads 0 Difficulty Rogue Special Mode None Game No. 10 Rogue 10 Adventurer 0 Explorer 0 Win Type - Total 0 Types 0/0/0/0/0/0/0 Lore% 2 Gallery% 8 Achievement% 7 Wizard Run 0 Options --------- ASCII 0 Keyboard 1 Movement Numpad Keybinds 0 Fullscreen 1 Font 18/SmallcapsGlow Map View 76x50 Tactical HUD 1 Map Filters NONE Filters NONE Steam 1 RUN: dd37c023-2392-4b85-8ab9-9c597fc6398e